[Event "Late-Titled-Tuesday-Blitz-May-07-2024"]
[Site "Chess.com"]
[Date "2024.05.07"]
[Round "3"]
[White "egnfanclub"]
[Black "Hilary46"]
[Result "0-1"]
[WhiteElo "2348"]
[BlackElo "2720"]
[TimeControl "180+1"]
[EndTime "14:25:43 PDT"]
[Termination "Hilary46 won by resignation"]

1. e4 {[%clk 0:03:00.9]} 1... e5 {[%clk 0:02:59.3]} 2. Nf3 {[%clk 0:03:00.1]}
2... Nc6 {[%clk 0:02:59.9]} 3. Nc3 {[%clk 0:02:59.5]} 3... Nf6 {[%clk
0:02:59.7]} 4. d4 {[%clk 0:02:59.2]} 4... exd4 {[%clk 0:02:59.8]} 5. Nd5 {[%clk
0:02:58.9]} 5... Nb4 {[%clk 0:02:57.6]} 6. Bc4 {[%clk 0:02:56.7]} 6... Nbxd5
{[%clk 0:02:55.6]} 7. exd5 {[%clk 0:02:57.6]} 7... Bb4+ {[%clk 0:02:55.1]} 8.
Kf1 {[%clk 0:02:56.6]} 8... O-O {[%clk 0:02:54.4]} 9. Qxd4 {[%clk 0:02:49.1]}
9... d6 {[%clk 0:02:54.3]} 10. Bg5 {[%clk 0:02:46.6]} 10... h6 {[%clk
0:02:47.3]} 11. Bh4 {[%clk 0:02:41.9]} 11... Re8 {[%clk 0:02:45.7]} 12. Bd3
{[%clk 0:02:40.3]} 12... Bc5 {[%clk 0:02:45.3]} 13. Qc4 {[%clk 0:02:22]} 13...
g5 {[%clk 0:02:19.4]} 14. Bg3 {[%clk 0:02:21]} 14... Nh5 {[%clk 0:02:08.3]} 15.
b4 {[%clk 0:02:16.4]} 15... Bb6 {[%clk 0:02:08.1]} 16. a4 {[%clk 0:02:15.1]}
16... a5 {[%clk 0:02:08.2]} 17. c3 {[%clk 0:02:03.5]} 17... Qf6 {[%clk
0:02:05.2]} 18. Ra2 {[%clk 0:01:49.5]} 18... axb4 {[%clk 0:01:38.2]} 19. cxb4
{[%clk 0:01:49.3]} 19... Nxg3+ {[%clk 0:01:38.4]} 20. hxg3 {[%clk 0:01:48.8]}
20... g4 {[%clk 0:01:39.3]} 21. Nh4 {[%clk 0:01:20]} 21... Rxa4 {[%clk
0:01:37.7]} 22. Qb5 {[%clk 0:00:56.5]} 22... Qa1+ {[%clk 0:01:36.2]} 0-1

[Event "Late-Titled-Tuesday-Blitz-May-07-2024"]
[Site "Chess.com"]
[Date "2024.05.07"]
[Round "3"]
[White "GWR2024"]
[Black "Nick12772"]
[Result "1-0"]
[WhiteElo "2172"]
[BlackElo "2433"]
[TimeControl "180+1"]
[EndTime "14:25:46 PDT"]
[Termination "GWR2024 won by resignation"]

1. e4 {[%clk 0:03:00.9]} 1... e6 {[%clk 0:02:59.9]} 2. d4 {[%clk 0:02:56.6]}
2... d5 {[%clk 0:03:00.3]} 3. Nd2 {[%clk 0:02:56.6]} 3... Nf6 {[%clk 0:03:00.2]}
4. e5 {[%clk 0:02:56.1]} 4... Nfd7 {[%clk 0:03:00.8]} 5. Bd3 {[%clk 0:02:55.4]}
5... c5 {[%clk 0:03:01.3]} 6. c3 {[%clk 0:02:55.5]} 6... Nc6 {[%clk 0:03:01.9]}
7. Ne2 {[%clk 0:02:54.9]} 7... cxd4 {[%clk 0:03:01.7]} 8. cxd4 {[%clk
0:02:54.9]} 8... f6 {[%clk 0:03:01.7]} 9. exf6 {[%clk 0:02:54.1]} 9... Nxf6
{[%clk 0:03:02.6]} 10. O-O {[%clk 0:02:53.8]} 10... Bd6 {[%clk 0:03:03.2]} 11.
Nf3 {[%clk 0:02:53.9]} 11... Qc7 {[%clk 0:03:03.7]} 12. Bg5 {[%clk 0:02:53.3]}
12... O-O {[%clk 0:03:04.2]} 13. Bh4 {[%clk 0:02:52.8]} 13... Nh5 {[%clk
0:03:04.6]} 14. Bg3 {[%clk 0:02:48.9]} 14... Nxg3 {[%clk 0:03:02.5]} 15. hxg3
{[%clk 0:02:48.2]} 15... g6 {[%clk 0:03:02.7]} 16. a3 {[%clk 0:02:45.7]} 16...
Qg7 {[%clk 0:02:58.3]} 17. Rc1 {[%clk 0:02:43.8]} 17... Bd7 {[%clk 0:02:56.4]}
18. Bb1 {[%clk 0:02:41.8]} 18... Rac8 {[%clk 0:02:54.4]} 19. Qd2 {[%clk
0:02:38.9]} 19... Ne7 {[%clk 0:02:25.2]} 20. Nf4 {[%clk 0:02:38.4]} 20... Nc6
{[%clk 0:01:53.2]} 21. Rfe1 {[%clk 0:02:34.1]} 21... Rce8 {[%clk 0:01:44.5]} 22.
Ba2 {[%clk 0:02:24.9]} 22... g5 {[%clk 0:01:26.1]} 23. Nxe6 {[%clk 0:02:21.3]}
23... Bxe6 {[%clk 0:01:20.6]} 24. Rxe6 {[%clk 0:02:20.7]} 24... Rxe6 {[%clk
0:01:18.1]} 25. Bxd5 {[%clk 0:02:20.5]} 25... Re8 {[%clk 0:00:58.8]} 26. Re1
{[%clk 0:02:14.6]} 26... g4 {[%clk 0:00:48.6]} 27. Rxe6 {[%clk 0:02:12.4]} 27...
Rxe6 {[%clk 0:00:46]} 28. Bxe6+ {[%clk 0:02:13]} 28... Kh8 {[%clk 0:00:46.6]}
29. Ng5 {[%clk 0:02:07.4]} 29... Qxd4 {[%clk 0:00:39.7]} 30. Nf7+ {[%clk
0:02:04.1]} 30... Kg7 {[%clk 0:00:39.6]} 31. Qh6+ {[%clk 0:02:00.9]} 31... Kg8
{[%clk 0:00:36.5]} 32. Nxd6+ {[%clk 0:01:58.4]} 1-0

[Event "Late-Titled-Tuesday-Blitz-May-07-2024"]
[Site "Chess.com"]
[Date "2024.05.07"]
[Round "3"]
[White "Russian_berezka"]
[Black "ab-lsv"]
[Result "1-0"]
[WhiteElo "2600"]
[BlackElo "2390"]
[TimeControl "180+1"]
[EndTime "14:25:50 PDT"]
[Termination "Russian_berezka won by resignation"]

1. c4 {[%clk 0:02:55]} 1... c5 {[%clk 0:02:59.1]} 2. Nc3 {[%clk 0:02:52.8]} 2...
g6 {[%clk 0:02:59.3]} 3. g3 {[%clk 0:02:53.1]} 3... Bg7 {[%clk 0:02:59.5]} 4.
Bg2 {[%clk 0:02:53.8]} 4... Nc6 {[%clk 0:02:59.9]} 5. b3 {[%clk 0:02:53.1]} 5...
e5 {[%clk 0:02:59]} 6. Bb2 {[%clk 0:02:53.4]} 6... Nge7 {[%clk 0:02:59.3]} 7. e4
{[%clk 0:02:47.9]} 7... d6 {[%clk 0:02:58.8]} 8. Nge2 {[%clk 0:02:48.5]} 8...
O-O {[%clk 0:02:54.3]} 9. O-O {[%clk 0:02:48.5]} 9... f5 {[%clk 0:02:54.6]} 10.
f4 {[%clk 0:02:45.2]} 10... Be6 {[%clk 0:02:54.1]} 11. d3 {[%clk 0:02:44.9]}
11... Qd7 {[%clk 0:02:54.2]} 12. Nd5 {[%clk 0:02:43.1]} 12... Rf7 {[%clk
0:02:49.2]} 13. Qd2 {[%clk 0:02:19.6]} 13... Raf8 {[%clk 0:02:48.1]} 14. Kh1
{[%clk 0:02:18.8]} 14... Nd4 {[%clk 0:02:37.2]} 15. Nxd4 {[%clk 0:02:06.2]}
15... cxd4 {[%clk 0:02:35.3]} 16. fxe5 {[%clk 0:02:03.8]} 16... dxe5 {[%clk
0:02:30]} 17. Ba3 {[%clk 0:02:03.8]} 17... Bf6 {[%clk 0:01:50.1]} 18. Rae1
{[%clk 0:01:53.4]} 18... Bxd5 {[%clk 0:01:16.7]} 19. cxd5 {[%clk 0:01:52.7]}
19... Re8 {[%clk 0:01:09.4]} 20. d6 {[%clk 0:01:47.1]} 20... Nc6 {[%clk
0:01:02.9]} 21. exf5 {[%clk 0:01:47]} 21... gxf5 {[%clk 0:01:01.2]} 22. Bd5
{[%clk 0:01:46.5]} 22... Kh8 {[%clk 0:00:57]} 23. Bxf7 {[%clk 0:01:44.5]} 23...
Qxf7 {[%clk 0:00:57.3]} 24. Rxf5 {[%clk 0:01:44.4]} 1-0

[Event "Late-Titled-Tuesday-Blitz-May-07-2024"]
[Site "Chess.com"]
[Date "2024.05.07"]
[Round "3"]
[White "Perecke"]
[Black "rhwr"]
[Result "1-0"]
[WhiteElo "2538"]
[BlackElo "2273"]
[TimeControl "180+1"]
[EndTime "14:26:02 PDT"]
[Termination "Perecke won by resignation"]

1. e4 {[%clk 0:03:00.9]} 1... c5 {[%clk 0:02:59.4]} 2. Nf3 {[%clk 0:02:58.8]}
2... d6 {[%clk 0:02:59.5]} 3. d4 {[%clk 0:02:58.9]} 3... cxd4 {[%clk 0:03:00]}
4. Nxd4 {[%clk 0:02:59.8]} 4... Nf6 {[%clk 0:03:00.4]} 5. Nc3 {[%clk 0:03:00.4]}
5... e5 {[%clk 0:03:01.3]} 6. Nb3 {[%clk 0:02:57.1]} 6... Be6 {[%clk 0:03:00.8]}
7. Bd3 {[%clk 0:02:56]} 7... Be7 {[%clk 0:03:01.2]} 8. O-O {[%clk 0:02:56.4]}
8... O-O {[%clk 0:03:01.8]} 9. Be3 {[%clk 0:02:56.7]} 9... Nbd7 {[%clk
0:03:02.3]} 10. f3 {[%clk 0:02:54.3]} 10... a6 {[%clk 0:03:02.6]} 11. a4 {[%clk
0:02:53.9]} 11... Rc8 {[%clk 0:03:00.9]} 12. Qe2 {[%clk 0:02:52.7]} 12... d5
{[%clk 0:03:00.1]} 13. exd5 {[%clk 0:02:52.6]} 13... Nxd5 {[%clk 0:02:59.8]} 14.
Nxd5 {[%clk 0:02:52.5]} 14... Bxd5 {[%clk 0:02:59.9]} 15. Rfc1 {[%clk
0:02:53.4]} 15... Bxb3 {[%clk 0:02:30.4]} 16. cxb3 {[%clk 0:02:53.2]} 16... Bc5
{[%clk 0:02:30.9]} 17. Be4 {[%clk 0:02:37.2]} 17... Qb6 {[%clk 0:02:26.5]} 18.
Bxc5 {[%clk 0:02:30.6]} 18... Rxc5 {[%clk 0:02:25.7]} 19. Rxc5 {[%clk
0:02:25.4]} 19... Nxc5 {[%clk 0:02:22.9]} 20. Qe3 {[%clk 0:02:18.6]} 20... Qb4
{[%clk 0:02:18.6]} 21. Bd5 {[%clk 0:02:15.3]} 21... Rd8 {[%clk 0:02:11.4]} 22.
Qxe5 {[%clk 0:02:13.4]} 22... Nxb3 {[%clk 0:01:58.8]} 23. Rd1 {[%clk 0:02:10.5]}
23... Qc5+ {[%clk 0:01:52.4]} 24. Kh1 {[%clk 0:01:55.6]} 24... Qc2 {[%clk
0:01:43.9]} 25. Bxf7+ {[%clk 0:01:23.7]} 25... Kxf7 {[%clk 0:01:42.6]} 26. Qh5+
{[%clk 0:01:23.7]} 26... Ke7 {[%clk 0:01:32.8]} 27. Qg5+ {[%clk 0:01:23.3]}
27... Kf7 {[%clk 0:01:07.3]} 28. Qxd8 {[%clk 0:01:24.2]} 28... Qxb2 {[%clk
0:01:02.8]} 29. Rd7+ {[%clk 0:01:22.6]} 29... Ke6 {[%clk 0:01:03.1]} 30. Qe8+
{[%clk 0:01:22.1]} 30... Kf5 {[%clk 0:01:03.5]} 31. Qf7+ {[%clk 0:01:20.7]}
31... Kg5 {[%clk 0:01:03.1]} 32. Rd5+ {[%clk 0:01:19.7]} 1-0

[Event "Late-Titled-Tuesday-Blitz-May-07-2024"]
[Site "Chess.com"]
[Date "2024.05.07"]
[Round "3"]
[White "rdarruda"]
[Black "JosephRyan"]
[Result "1-0"]
[WhiteElo "2556"]
[BlackElo "2224"]
[TimeControl "180+1"]
[EndTime "14:26:08 PDT"]
[Termination "rdarruda won by resignation"]

1. d4 {[%clk 0:03:00.9]} 1... e6 {[%clk 0:02:57.7]} 2. e4 {[%clk 0:03:00]} 2...
d5 {[%clk 0:02:57.3]} 3. Nc3 {[%clk 0:03:00.1]} 3... Bb4 {[%clk 0:02:56.4]} 4.
Qg4 {[%clk 0:02:59]} 4... Nf6 {[%clk 0:02:50.5]} 5. Qxg7 {[%clk 0:02:58.8]} 5...
Rg8 {[%clk 0:02:50.8]} 6. Qh6 {[%clk 0:02:58.9]} 6... dxe4 {[%clk 0:02:48.6]} 7.
Ne2 {[%clk 0:02:51.8]} 7... Nbd7 {[%clk 0:02:40.9]} 8. Bg5 {[%clk 0:02:51.2]}
8... b6 {[%clk 0:02:38.8]} 9. O-O-O {[%clk 0:02:50.9]} 9... Bb7 {[%clk
0:02:38.7]} 10. d5 {[%clk 0:02:44]} 10... Ng4 {[%clk 0:02:08.9]} 11. Bxd8 {[%clk
0:02:27.9]} 11... Nxh6 {[%clk 0:02:08.7]} 12. Bxc7 {[%clk 0:02:24.1]} 12... exd5
{[%clk 0:01:59.5]} 13. Nxd5 {[%clk 0:02:22.8]} 13... Bc5 {[%clk 0:01:58.1]} 14.
Bg3 {[%clk 0:02:18.9]} 14... O-O-O {[%clk 0:01:55.7]} 15. Nec3 {[%clk
0:02:08.9]} 15... Nf5 {[%clk 0:01:54.1]} 16. Nxe4 {[%clk 0:01:58.1]} 16... Nxg3
{[%clk 0:01:53.8]} 17. hxg3 {[%clk 0:01:56.2]} 17... f5 {[%clk 0:01:53.3]} 18.
Nxc5 {[%clk 0:01:54.9]} 18... Nxc5 {[%clk 0:01:53.2]} 19. Ne7+ {[%clk
0:01:54.9]} 19... Kc7 {[%clk 0:01:48.2]} 20. Nxg8 {[%clk 0:01:54.9]} 20... Rxg8
{[%clk 0:01:48.9]} 21. Rxh7+ {[%clk 0:01:54.5]} 21... Kb8 {[%clk 0:01:48.7]} 22.
Bc4 {[%clk 0:01:52]} 22... Re8 {[%clk 0:01:44.8]} 23. Bd5 {[%clk 0:01:50.1]}
23... Re2 {[%clk 0:01:33.2]} 24. Bf3 {[%clk 0:01:44.3]} 24... Re8 {[%clk
0:01:12.5]} 25. Bxb7 {[%clk 0:01:42.4]} 25... Nxb7 {[%clk 0:01:10.2]} 26. Rdd7
{[%clk 0:01:36.7]} 26... Nc5 {[%clk 0:01:09.3]} 27. Rde7 {[%clk 0:01:27.2]}
27... Rd8 {[%clk 0:01:04.8]} 28. b4 {[%clk 0:01:26.3]} 28... Ne4 {[%clk
0:01:01.1]} 29. Rb7+ {[%clk 0:01:24.5]} 29... Ka8 {[%clk 0:01:01.4]} 30. Rxa7+
{[%clk 0:01:24.3]} 30... Kb8 {[%clk 0:01:01.8]} 31. Rhb7+ {[%clk 0:01:24.2]}
31... Kc8 {[%clk 0:01:01.9]} 32. Ra8+ {[%clk 0:01:21.5]} 32... Kxb7 {[%clk
0:01:00.3]} 33. Rxd8 {[%clk 0:01:22.4]} 33... Nxf2 {[%clk 0:01:00.3]} 34. Rf8
{[%clk 0:01:20.1]} 1-0

[Event "Late-Titled-Tuesday-Blitz-May-07-2024"]
[Site "Chess.com"]
[Date "2024.05.07"]
[Round "3"]
[White "xakevicius91"]
[Black "NowInChess"]
[Result "1-0"]
[WhiteElo "2514"]
[BlackElo "2257"]
[TimeControl "180+1"]
[EndTime "14:26:10 PDT"]
[Termination "xakevicius91 won by checkmate"]

1. e4 {[%clk 0:03:00.9]} 1... e6 {[%clk 0:02:59.5]} 2. d4 {[%clk 0:03:00.1]}
2... d5 {[%clk 0:03:00.1]} 3. Nc3 {[%clk 0:03:00]} 3... Nc6 {[%clk 0:03:00.3]}
4. Nf3 {[%clk 0:02:45.6]} 4... Nf6 {[%clk 0:02:59.6]} 5. e5 {[%clk 0:02:45.6]}
5... Ne4 {[%clk 0:02:57.6]} 6. Bd3 {[%clk 0:02:43.8]} 6... Bb4 {[%clk
0:02:57.6]} 7. Bd2 {[%clk 0:02:43.8]} 7... Nxd2 {[%clk 0:02:57.4]} 8. Qxd2
{[%clk 0:02:43.7]} 8... f6 {[%clk 0:02:58]} 9. a3 {[%clk 0:02:40.5]} 9... Bxc3
{[%clk 0:02:58.1]} 10. bxc3 {[%clk 0:02:41.4]} 10... fxe5 {[%clk 0:02:57.3]} 11.
dxe5 {[%clk 0:02:42.3]} 11... O-O {[%clk 0:02:56.3]} 12. h4 {[%clk 0:02:42.1]}
12... Rxf3 {[%clk 0:02:41.8]} 13. gxf3 {[%clk 0:02:43]} 13... Nxe5 {[%clk
0:02:41.9]} 14. Be2 {[%clk 0:02:41.8]} 14... Qf6 {[%clk 0:02:35.5]} 15. Rh3
{[%clk 0:02:33.6]} 15... Bd7 {[%clk 0:02:11]} 16. Rg3 {[%clk 0:02:31.2]} 16...
Ng6 {[%clk 0:01:58.1]} 17. h5 {[%clk 0:02:29.5]} 17... Nf4 {[%clk 0:01:57.6]}
18. h6 {[%clk 0:02:21.5]} 18... Qxh6 {[%clk 0:01:45.5]} 19. Bf1 {[%clk
0:02:17.1]} 19... e5 {[%clk 0:01:32.6]} 20. O-O-O {[%clk 0:02:16.4]} 20... Rf8
{[%clk 0:01:12.5]} 21. Bd3 {[%clk 0:02:14.6]} 21... Ba4 {[%clk 0:00:58.8]} 22.
Rdg1 {[%clk 0:02:13.8]} 22... Rf7 {[%clk 0:00:49]} 23. c4 {[%clk 0:02:08.4]}
23... Qd6 {[%clk 0:00:14.4]} 24. Kb2 {[%clk 0:02:02.5]} 24... dxc4 {[%clk
0:00:08.8]} 25. Bxc4 {[%clk 0:01:56.1]} 25... Qxd2 {[%clk 0:00:08.4]} 26. Rxg7+
{[%clk 0:01:55.7]} 26... Kf8 {[%clk 0:00:06.6]} 27. Rxf7+ {[%clk 0:01:56.1]}
27... Ke8 {[%clk 0:00:05.7]} 28. Rg8# {[%clk 0:01:57]} 1-0

[Event "Late-Titled-Tuesday-Blitz-May-07-2024"]
[Site "Chess.com"]
[Date "2024.05.07"]
[Round "3"]
[White "Rodalquilar"]
[Black "MITerryble"]
[Result "0-1"]
[WhiteElo "2769"]
[BlackElo "3026"]
[TimeControl "180+1"]
[EndTime "14:26:11 PDT"]
[Termination "MITerryble won on time"]

1. d4 {[%clk 0:03:00.9]} 1... e6 {[%clk 0:03:00.3]} 2. Nf3 {[%clk 0:03:00.9]}
2... Nf6 {[%clk 0:03:00.9]} 3. Bf4 {[%clk 0:03:00.6]} 3... b6 {[%clk 0:03:01.3]}
4. e3 {[%clk 0:03:01.1]} 4... Bb7 {[%clk 0:03:01.9]} 5. Nbd2 {[%clk 0:03:01.6]}
5... Bd6 {[%clk 0:03:02.4]} 6. Bg3 {[%clk 0:03:01.4]} 6... h6 {[%clk 0:03:01.6]}
7. Bd3 {[%clk 0:03:01.1]} 7... Bxg3 {[%clk 0:03:02.2]} 8. hxg3 {[%clk
0:03:01.2]} 8... d6 {[%clk 0:03:03.1]} 9. Qe2 {[%clk 0:03:00]} 9... Nbd7 {[%clk
0:03:03.5]} 10. c3 {[%clk 0:02:55]} 10... Qe7 {[%clk 0:03:03.3]} 11. a4 {[%clk
0:02:47.8]} 11... a6 {[%clk 0:03:03]} 12. O-O {[%clk 0:02:45.1]} 12... e5 {[%clk
0:03:01.8]} 13. dxe5 {[%clk 0:02:44]} 13... dxe5 {[%clk 0:03:02.7]} 14. e4
{[%clk 0:02:43.6]} 14... O-O {[%clk 0:02:56.1]} 15. Rfe1 {[%clk 0:02:22.5]}
15... Nc5 {[%clk 0:02:55.4]} 16. Bc2 {[%clk 0:02:22.5]} 16... a5 {[%clk
0:02:54.5]} 17. Nh4 {[%clk 0:01:55.1]} 17... g6 {[%clk 0:02:54.5]} 18. Qe3
{[%clk 0:01:42.8]} 18... Ng4 {[%clk 0:02:53.9]} 19. Qe2 {[%clk 0:01:42.1]} 19...
h5 {[%clk 0:02:51.1]} 20. Nf1 {[%clk 0:01:28.2]} 20... Ba6 {[%clk 0:02:48.7]}
21. Qf3 {[%clk 0:01:28.6]} 21... Rad8 {[%clk 0:02:40.9]} 22. Rad1 {[%clk
0:01:28.2]} 22... Qg5 {[%clk 0:02:27.6]} 23. Rxd8 {[%clk 0:00:32.5]} 23... Rxd8
{[%clk 0:02:28.5]} 24. Rd1 {[%clk 0:00:33]} 24... Bxf1 {[%clk 0:02:26.3]} 25.
Rxd8+ {[%clk 0:00:16.1]} 25... Qxd8 {[%clk 0:02:25.5]} 26. b4 {[%clk 0:00:12.2]}
26... axb4 {[%clk 0:02:21.2]} 27. cxb4 {[%clk 0:00:12.7]} 27... Bd3 {[%clk
0:02:17.6]} 28. Bxd3 {[%clk 0:00:07.2]} 28... Qxd3 {[%clk 0:02:13.2]} 29. Qxd3
{[%clk 0:00:05.1]} 29... Nxd3 {[%clk 0:02:13.4]} 30. a5 {[%clk 0:00:06]} 30...
Nxb4 {[%clk 0:02:12.9]} 31. a6 {[%clk 0:00:06.6]} 31... Nxa6 {[%clk 0:02:12.7]}
0-1

[Event "Late-Titled-Tuesday-Blitz-May-07-2024"]
[Site "Chess.com"]
[Date "2024.05.07"]
[Round "3"]
[White "Olkaa"]
[Black "IraZyne"]
[Result "1-0"]
[WhiteElo "2620"]
[BlackElo "2324"]
[TimeControl "180+1"]
[EndTime "14:26:23 PDT"]
[Termination "Olkaa won by resignation"]

1. e4 {[%clk 0:03:00.9]} 1... Nf6 {[%clk 0:02:59]} 2. e5 {[%clk 0:03:00.6]} 2...
Nd5 {[%clk 0:02:58.4]} 3. c4 {[%clk 0:03:01.1]} 3... Nb6 {[%clk 0:02:57.9]} 4.
d4 {[%clk 0:03:01.7]} 4... d6 {[%clk 0:02:58.1]} 5. exd6 {[%clk 0:03:02.6]} 5...
exd6 {[%clk 0:02:58.1]} 6. h3 {[%clk 0:03:01.7]} 6... Bf5 {[%clk 0:02:57]} 7.
Nf3 {[%clk 0:03:00.6]} 7... Be7 {[%clk 0:02:56.8]} 8. Nc3 {[%clk 0:03:00]} 8...
O-O {[%clk 0:02:56.5]} 9. Be2 {[%clk 0:03:00.6]} 9... c6 {[%clk 0:02:56.3]} 10.
O-O {[%clk 0:02:59.7]} 10... Bf6 {[%clk 0:02:52]} 11. b3 {[%clk 0:02:58.3]}
11... h6 {[%clk 0:02:50.2]} 12. Be3 {[%clk 0:02:57.7]} 12... d5 {[%clk
0:02:50.1]} 13. c5 {[%clk 0:02:55.1]} 13... Nc8 {[%clk 0:02:50]} 14. b4 {[%clk
0:02:54.9]} 14... Nd7 {[%clk 0:02:49.5]} 15. Qd2 {[%clk 0:02:51.3]} 15... Re8
{[%clk 0:02:48]} 16. a4 {[%clk 0:02:48.8]} 16... Ne7 {[%clk 0:02:45.4]} 17. b5
{[%clk 0:02:48.7]} 17... Be4 {[%clk 0:02:42]} 18. Nxe4 {[%clk 0:02:29.5]} 18...
dxe4 {[%clk 0:02:41.8]} 19. Nh2 {[%clk 0:02:27.7]} 19... Nf8 {[%clk 0:02:36.2]}
20. Ng4 {[%clk 0:02:25.8]} 20... Nf5 {[%clk 0:02:33.3]} 21. Nxf6+ {[%clk
0:02:22.2]} 21... Qxf6 {[%clk 0:02:33]} 22. d5 {[%clk 0:02:10.7]} 22... cxd5
{[%clk 0:02:29.8]} 23. Qxd5 {[%clk 0:02:09.5]} 23... Nxe3 {[%clk 0:02:22.1]} 24.
fxe3 {[%clk 0:02:07.2]} 24... Qe7 {[%clk 0:02:22.5]} 25. c6 {[%clk 0:01:54.3]}
25... bxc6 {[%clk 0:02:22.1]} 26. bxc6 {[%clk 0:01:54.2]} 26... Rac8 {[%clk
0:02:22]} 27. Bc4 {[%clk 0:01:49.5]} 27... Rc7 {[%clk 0:02:10.4]} 28. Rab1
{[%clk 0:01:43.1]} 28... Rd8 {[%clk 0:02:06.3]} 29. Qxf7+ {[%clk 0:01:30.3]}
29... Qxf7 {[%clk 0:02:04.5]} 30. Rxf7 {[%clk 0:01:30.9]} 30... Rxf7 {[%clk
0:01:58.7]} 31. Rb7 {[%clk 0:01:28.4]} 31... Kh7 {[%clk 0:01:06.6]} 32. Rxf7
{[%clk 0:01:21.6]} 32... Ng6 {[%clk 0:01:06]} 33. c7 {[%clk 0:01:18.6]} 33...
Re8 {[%clk 0:01:03.2]} 34. Ba6 {[%clk 0:01:12.9]} 1-0

[Event "Late-Titled-Tuesday-Blitz-May-07-2024"]
[Site "Chess.com"]
[Date "2024.05.07"]
[Round "3"]
[White "Stanbad1"]
[Black "albayo"]
[Result "1-0"]
[WhiteElo "2623"]
[BlackElo "2425"]
[TimeControl "180+1"]
[EndTime "14:26:36 PDT"]
[Termination "Stanbad1 won by resignation"]

1. d4 {[%clk 0:03:00.9]} 1... Nf6 {[%clk 0:02:59.8]} 2. Nc3 {[%clk 0:03:00.6]}
2... g6 {[%clk 0:03:00.4]} 3. e4 {[%clk 0:03:00.3]} 3... d6 {[%clk 0:02:59.5]}
4. Be3 {[%clk 0:03:00]} 4... Bg7 {[%clk 0:02:59.8]} 5. f3 {[%clk 0:03:00.2]}
5... O-O {[%clk 0:02:58.9]} 6. Qd2 {[%clk 0:03:00.5]} 6... Nbd7 {[%clk
0:02:55.3]} 7. O-O-O {[%clk 0:03:00.6]} 7... c5 {[%clk 0:02:54.3]} 8. dxc5
{[%clk 0:02:59.3]} 8... dxc5 {[%clk 0:02:55.2]} 9. Bxc5 {[%clk 0:02:58.9]} 9...
Qa5 {[%clk 0:02:54.5]} 10. Be3 {[%clk 0:02:58.9]} 10... a6 {[%clk 0:02:53.6]}
11. Kb1 {[%clk 0:02:58.5]} 11... b5 {[%clk 0:02:53.5]} 12. Nd5 {[%clk
0:02:58.5]} 12... Qd8 {[%clk 0:02:47.4]} 13. Nb6 {[%clk 0:02:53.4]} 13... Rb8
{[%clk 0:02:43.3]} 14. Nxd7 {[%clk 0:02:50.1]} 14... Nxd7 {[%clk 0:02:39.6]} 15.
Bh6 {[%clk 0:02:50]} 15... Qc7 {[%clk 0:02:25]} 16. Bxg7 {[%clk 0:02:48.3]}
16... Kxg7 {[%clk 0:02:25.9]} 17. Ne2 {[%clk 0:02:48.1]} 17... Nb6 {[%clk
0:02:22.9]} 18. Qc3+ {[%clk 0:02:45.9]} 18... Qxc3 {[%clk 0:02:22]} 19. Nxc3
{[%clk 0:02:46.8]} 19... Be6 {[%clk 0:02:21.8]} 20. Bd3 {[%clk 0:02:45.5]} 20...
Rfd8 {[%clk 0:02:21.4]} 21. b3 {[%clk 0:02:45.1]} 21... b4 {[%clk 0:02:16.6]}
22. Ne2 {[%clk 0:02:44.7]} 22... a5 {[%clk 0:02:16.3]} 23. Bb5 {[%clk
0:02:43.6]} 23... a4 {[%clk 0:02:09.3]} 24. Nd4 {[%clk 0:02:41.3]} 24... axb3
{[%clk 0:02:01.6]} 25. axb3 {[%clk 0:02:37.7]} 25... Bd7 {[%clk 0:01:44.2]} 26.
Bxd7 {[%clk 0:02:35.3]} 26... Rxd7 {[%clk 0:01:40]} 27. Nc6 {[%clk 0:02:35.4]}
27... Rbb7 {[%clk 0:01:15.4]} 28. Nxb4 {[%clk 0:02:32.4]} 28... Rdc7 {[%clk
0:00:55.5]} 29. Nd5 {[%clk 0:02:31.2]} 29... Nxd5 {[%clk 0:00:55.7]} 30. Rxd5
{[%clk 0:02:22.3]} 30... Rc3 {[%clk 0:00:55.8]} 31. Kb2 {[%clk 0:02:22.2]} 31...
Rbc7 {[%clk 0:00:56.1]} 32. Rd2 {[%clk 0:02:22.6]} 32... f5 {[%clk 0:00:53.7]}
33. Re1 {[%clk 0:02:19.5]} 33... Kf6 {[%clk 0:00:52.3]} 34. Ree2 {[%clk
0:02:18.6]} 34... e5 {[%clk 0:00:52.1]} 35. Rd6+ {[%clk 0:02:17.7]} 35... Kg5
{[%clk 0:00:52.5]} 36. exf5 {[%clk 0:02:16.9]} 36... gxf5 {[%clk 0:00:52.9]} 37.
Rd5 {[%clk 0:02:16.7]} 37... R7c5 {[%clk 0:00:40.3]} 38. Rdxe5 {[%clk
0:02:14.2]} 38... Rxc2+ {[%clk 0:00:40]} 39. Rxc2 {[%clk 0:02:14.2]} 39... Rxe5
{[%clk 0:00:40.2]} 40. b4 {[%clk 0:02:14.6]} 40... h5 {[%clk 0:00:38.7]} 41. Kb3
{[%clk 0:02:13.4]} 41... h4 {[%clk 0:00:38.7]} 42. Ka4 {[%clk 0:02:12.7]} 42...
h3 {[%clk 0:00:39.1]} 43. gxh3 {[%clk 0:02:12.8]} 43... Kh4 {[%clk 0:00:35.9]}
44. b5 {[%clk 0:02:10.7]} 44... Kxh3 {[%clk 0:00:35]} 45. b6 {[%clk 0:02:10.9]}
45... Re8 {[%clk 0:00:26.4]} 46. Rc5 {[%clk 0:02:10.4]} 46... f4 {[%clk
0:00:26.3]} 47. Rf5 {[%clk 0:02:10.4]} 1-0